fUST/lending_fUST_20241117
["ID","MTS","AMOUNT","RATE_DAILY","PERIOD"]
[342431559,1731855036724,-500.0,0.00019178,2]
[342431560,1731855036734,-1004.89,0.00019178,2]
[342431561,1731855036744,-500.0,0.00019178,2]
[342431562,1731855036754,-500.0,0.00019178,2]
[342431563,1731855036763,-501.28719312,0.00019178,2]
[342431564,1731855036773,-923.19,0.00019178,2]
[342431565,1731855036783,-500.0,0.00019178,2]
[342431566,1731855036792,-500.0,0.00019178,2]
[342431567,1731855036802,-500.0,0.00019178,2]
[342431568,1731855036811,-805.0,0.00019178,2]
[342431569,1731855036820,-2731.4,0.00019178,2]
[342431570,1731855036830,-350.04065723,0.00019178,2]
[342431571,1731855036840,-1412.99,0.00019178,2]
[342431572,1731855036849,-500.0,0.00019178,2]
[342431573,1731855036858,-747.95,0.00019178,2]
[342431574,1731855036868,-500.0,0.00019178,2]
[342431575,1731855036877,-500.0,0.00019178,2]
[342431576,1731855036887,-838.94,0.00019178,2]
[342431577,1731855036896,-500.0,0.00019178,2]
[342431578,1731855036905,-1879.24,0.00019178,2]
[342431579,1731855036915,-500.0,0.00019178,2]
[342431580,1731855036924,-625.34057163,0.00019178,2]
[342431581,1731855036934,-4367.87,0.00019178,2]
[342431582,1731855036943,-500.0,0.00019178,2]
[342431583,1731855036952,-8614.12870203,0.00019178,2]
[342431584,1731855037182,-39.40129797,0.00019178,2]
[342431585,1731855037192,-500.0,0.00019178,2]
[342431586,1731855037203,-153.4383739,0.00019178,2]
[342431587,1731855037212,-200.37177246,0.00019178,2]
[342431597,1731855038119,-299.62822754,0.00019178,2]
[342431598,1731855038129,-1331.09,0.00019178,2]
[342431599,1731855038139,-500.0,0.00019178,2]
[342431600,1731855038148,-500.0,0.00019178,2]
[342431601,1731855038158,-500.0,0.00019178,2]
[342431602,1731855038167,-167.7182728,0.00019178,2]
[342431603,1731855038177,-1678.84,0.00019178,2]
[342431604,1731855038186,-20093.34,0.00019178,2]
[342431605,1731855038196,-500.0,0.00019178,2]
[342431607,1731855038205,-2639.73,0.00019178,2]
[342431608,1731855038214,-550.43953484,0.00019178,2]
[342431609,1731855038224,-1420.2,0.00019178,2]
[342431610,1731855038234,-500.0,0.00019178,2]
[342431611,1731855038243,-500.0,0.00019178,2]
[342431612,1731855038254,-739.74,0.00019178,2]
[342431613,1731855038265,-548.48152744,0.00019178,2]
[342431614,1731855038276,-500.0,0.00019178,2]
[342431615,1731855038286,-2200.41,0.00019178,2]
[342431616,1731855038295,-500.0,0.00019178,2]
[342431617,1731855038305,-500.0,0.00019178,2]
[342431618,1731855038315,-686.09,0.00019178,2]
[342431619,1731855038324,-500.0,0.00019178,2]
[342431620,1731855038335,-17560.83,0.00019178,2]
[342431621,1731855038345,-500.0,0.00019178,2]
[342431622,1731855038354,-806.43,0.00019178,2]
[342431623,1731855038363,-500.0,0.00019178,2]
[342431624,1731855038373,-268.59572002,0.00019178,2]
[342431625,1731855038383,-500.0,0.00019178,2]
[342431626,1731855038392,-1339.18,0.00019178,2]
[342431627,1731855038401,-500.0,0.00019178,2]
[342431628,1731855038411,-500.0,0.00019178,2]
[342431629,1731855038420,-1323.13,0.00019178,2]
[342431630,1731855038430,-632.15,0.00019178,2]
[342431631,1731855038439,-5856.48,0.00019178,2]
[342431632,1731855038448,-449.80528172,0.00019178,2]
[342431633,1731855038464,-87.17471828,0.00019178,2]
[342431634,1731855038474,-500.0,0.00019178,2]
[342431635,1731855038483,-500.0,0.00019178,2]
[342431636,1731855038493,-84.13528197,0.00019178,2]
[342431644,1731855039797,-1351.072,0.000191,2]
[342431645,1731855039807,-107.90885781,0.00019178,2]
[342431656,1731855044310,-307.95586022,0.00019178,2]
[342431657,1731855044320,-117.32420494,0.00019178,2]
[342431660,1731855044335,-382.67579506,0.00019178,2]
[342431661,1731855044347,-1199.59,0.00019178,2]
[342431663,1731855044358,-17827.6,0.00019178,2]
[342431665,1731855044367,-471.15962219,0.00019178,2]
[342431667,1731855044380,-75.57037781,0.00019178,2]
[342431668,1731855044389,-501.0370828,0.00019178,2]
[342431669,1731855044399,-844.83,0.00019178,2]
[342431670,1731855044408,-241.79482288,0.00019178,2]
[342431688,1731855079539,307.998245,0.00013973,2]
[342431704,1731855860037,292.598332,0.00013973,2]
[342431707,1731856004141,-331.67252636,0.00017883,2]
[342431904,1731856238330,-300.0,0.00017628,2]
[342431906,1731856238341,-7288.84162712,0.00017629,2]
[342431908,1731856238352,-8885.52672418,0.00017629,2]
[342431919,1731856240029,-878.927089,0.00017629,2]
[342431936,1731856243406,-4644.4975501,0.00017629,2]
[342431937,1731856243416,-187.97860264,0.00017883,2]
[342431938,1731856243425,-2511.6171249,0.00018001,2]
[342431939,1731856243434,-12520.3004109,0.00018019,2]
[342431940,1731856243444,-177.808432,0.00018019,2]
[342431941,1731856243453,-519.651129,0.00018568,2]
[342431942,1731856243462,-610.49803611,0.00018679,2]
[342431943,1731856243472,-6035.31460673,0.00018738,2]
[342431944,1731856243481,-2569.90711824,0.00018968,2]
[342431945,1731856243490,-500.0,0.00019,2]
[342431947,1731856243500,-340.31880348,0.00019068,2]
[342431948,1731856243510,-556.03880533,0.00019077,2]
[342431949,1731856243518,-556.03880532,0.00019077,2]
[342431950,1731856243528,-556.03880532,0.00019078,2]
[342431951,1731856243537,-556.03880532,0.00019078,2]
[342431952,1731856243549,-556.03880532,0.00019078,2]
[342431953,1731856243561,-296.07492922,0.00019078,2]
[342431954,1731856243571,-7820.84608644,0.00019078,2]
[342431955,1731856243582,-8733.64939263,0.00019078,2]
[342431956,1731856243599,-16.7101451,0.00019078,2]
[342431957,1731856243610,-866.67648958,0.00019078,2]
[342431958,1731856243620,-1000.0,0.00019078,2]
[342431959,1731856243629,-6035.31460673,0.0001916,2]
[342431960,1731856243638,-481.47,0.00019167,3]
[342431961,1731856243652,-160.49,0.00019168,3]
[342431962,1731856243668,-600.92803233,0.00019173,2]
[342431963,1731856243677,-500.0,0.00019173,2]
[342431964,1731856243687,-500.0,0.00019173,2]
[342431965,1731856243696,-30.23817405,0.00019173,2]
[342431966,1731856243710,-469.76182595,0.00019173,2]
[342431967,1731856243725,-500.0,0.00019173,2]
[342431968,1731856243741,-500.42974499,0.00019173,2]
[342431969,1731856243751,-500.0,0.00019173,2]
[342431970,1731856243761,-156.96927429,0.00019173,2]
[342431971,1731856243771,-500.0,0.00019173,2]
[342431972,1731856243791,-500.0,0.00019173,2]
[342431973,1731856243801,-500.0,0.00019173,2]
[342431974,1731856243814,-500.0,0.00019173,2]
[342431975,1731856243824,-500.43429681,0.00019173,2]
[342431976,1731856243847,-357.77215774,0.00019173,2]
[342431977,1731856243859,-142.22784226,0.00019173,2]
[342431978,1731856243869,-451.91682635,0.00019173,2]
[342431979,1731856243880,-48.08317365,0.00019173,2]
[342431980,1731856243890,-215.63874947,0.00019173,2]
[342431981,1731856243903,-500.0,0.00019173,2]
[342431982,1731856243913,-500.0,0.00019173,2]
[342431983,1731856243922,-500.34629178,0.00019173,2]
[342431984,1731856243931,-500.0,0.00019173,2]
[342431985,1731856243940,-500.0,0.00019177,2]
[342431986,1731856243951,-154.72972421,0.00019177,2]
[342431987,1731856243960,-500.0,0.00019177,2]
[342431988,1731856243969,-500.0,0.00019177,2]
[342431989,1731856243978,-334.15279444,0.00019177,2]
[342431998,1731856246069,-500.42886103,0.00019173,2]
[342431999,1731856246079,-70.09113897,0.00019177,2]
[342432000,1731856246091,-95.75606659,0.00019177,2]
[342432001,1731856246100,-480.36638189,0.00019177,2]
[342432002,1731856246110,-370.45840814,0.00019177,2]
[342432003,1731856246119,-209.68165268,0.00019177,2]
[342432004,1731856246129,-299.99865988,0.00019177,2]
[342432005,1731856246138,-171.11462272,0.00019177,2]
[342432006,1731856246148,-500.0,0.00019177,2]
[342432008,1731856246157,-500.0,0.00019177,2]
[342432009,1731856246167,-500.0,0.00019177,2]
[342432010,1731856246177,-500.0,0.00019177,2]
[342432011,1731856246188,-500.0,0.00019177,2]
[342432012,1731856246198,-500.0,0.00019177,2]
[342432013,1731856246208,-612.23097329,0.00019177,2]
[342432014,1731856246217,-500.0,0.00019177,2]
[342432015,1731856246227,-500.0,0.00019177,2]
[342432016,1731856246236,-500.0,0.00019177,2]
[342432017,1731856246245,-500.0,0.00019177,2]
[342432018,1731856246254,-500.0,0.00019177,2]
[342432019,1731856246264,-182.56399604,0.00019177,2]
[342432020,1731856246276,-317.43600396,0.00019177,2]
[342432021,1731856246285,-500.0,0.00019177,2]
[342432022,1731856246294,-500.0,0.00019177,2]
[342432023,1731856246303,-495.0,0.00019177,2]
[342432024,1731856246315,-500.0,0.00019177,2]
[342432025,1731856246326,-500.0,0.00019177,2]
[342432026,1731856246337,-500.0,0.00019177,2]
[342432027,1731856246346,-500.0,0.00019177,2]
[342432028,1731856246355,-500.0,0.00019177,2]
[342432029,1731856246364,-300.83767533,0.00019177,2]
[342432030,1731856246373,-500.0,0.00019177,2]
[342432031,1731856246382,-151.0,0.00019178,2]
[342432032,1731856246392,-151.0,0.00019178,2]
[342432033,1731856246401,-500.0,0.00019178,2]
[342432034,1731856246411,-151.0,0.00019178,2]
[342432035,1731856246420,-151.0,0.00019178,2]
[342432036,1731856246429,-51.4041506,0.00019178,2]
[342432089,1731856498421,296.739504,0.00013973,2]
[342432181,1731857208649,281.902528,0.00013973,2]
[342432183,1731857291980,959.93358961,0.00013,2]
[342432275,1731857432446,-262.390211,0.00017477,2]
[342432278,1731857432458,-73.084789,0.00017594,2]
[342432357,1731857438234,-262.390211,0.00017594,2]
[342432358,1731857438243,-354.19258071,0.00017799,2]
[342432359,1731857438256,-3864.53015849,0.00017799,2]
[342432360,1731857438265,-177.808432,0.00017944,2]
[342432361,1731857438275,-300.0,0.00018114,2]
[342432362,1731857438284,-300.0,0.00018114,2]
[342432363,1731857438293,-23037.24950369,0.00018115,2]
[342432364,1731857438713,-1273.94926361,0.00018115,2]
[342432365,1731857438723,-250.0,0.00018146,2]
[342432366,1731857438733,-262.390211,0.00018161,2]
[342432367,1731857438743,-262.390211,0.00018846,2]
[342432368,1731857438753,-342.2106183,0.00019078,2]
[342432369,1731857438762,-266.46743628,0.00019078,2]
[342432371,1731857438771,-1000.0,0.00019078,2]
[342432373,1731857438781,-320.98,0.00019168,3]
[342432374,1731857438790,-500.0,0.00019173,2]
[342432375,1731857438799,-500.0,0.00019173,2]
[342432376,1731857438808,-323.29731329,0.00019173,2]
[342432377,1731857438817,-500.0,0.00019173,2]
[342432378,1731857438827,-500.0,0.00019173,2]
[342432379,1731857438836,-511.30350638,0.00019173,2]
[342432380,1731857438845,-500.0,0.00019173,2]
[342432381,1731857438855,-500.13146379,0.00019177,2]
[342432382,1731857438864,-747.65429263,0.00019178,2]
[342432383,1731857438873,-151.0,0.00019178,2]
[342432384,1731857438883,-199.8,0.00019178,2]
[342432385,1731857438895,-199.8,0.00019178,2]
[342432386,1731857438904,-199.8,0.00019178,2]
[342432387,1731857438913,-199.8,0.00019178,2]
[342432388,1731857438922,-151.0,0.00019178,2]
[342432389,1731857438931,-151.0,0.00019178,2]
[342432390,1731857438940,-151.0,0.00019178,2]
[342432391,1731857438949,-8081.04397392,0.00019178,2]
[342432392,1731857438958,-151.0,0.00019178,2]
[342432393,1731857438967,-151.0,0.00019178,2]
[342432394,1731857438977,-52.80104603,0.00019178,2]
[342432395,1731857438989,-98.19895397,0.00019178,2]
[342432396,1731857438999,-151.0,0.00019178,2]
[342432397,1731857439011,-151.0,0.00019178,2]
[342432398,1731857439020,-151.0,0.00019178,2]
[342432399,1731857439029,-151.0,0.00019178,2]
[342432400,1731857439038,-192.167258,0.00019178,2]
[342432401,1731857439047,-151.0,0.00019178,2]
[342432402,1731857439057,-151.0,0.00019178,2]
[342432403,1731857439066,-151.0,0.00019178,2]
[342432404,1731857439075,-151.0,0.00019178,2]
[342432405,1731857439086,-327.56392298,0.00019178,2]
[342432406,1731857439096,-152.188017,0.00019178,2]
[342432407,1731857439104,-151.0,0.00019178,2]
[342432408,1731857439113,-598.72783791,0.00019178,2]
[342432409,1731857439123,-500.0,0.00019178,2]
[342432410,1731857439131,-151.0,0.00019178,2]
[342432411,1731857439142,-151.0,0.00019178,2]
[342432412,1731857439151,-500.0,0.00019178,2]
[342432413,1731857439160,-500.0,0.00019178,2]
[342432414,1731857439169,-500.0,0.00019178,2]
[342432415,1731857439178,-152.952186,0.00019178,2]
[342432416,1731857439187,-500.0,0.00019178,2]
[342432417,1731857439196,-511.90335778,0.00019178,2]
[342432418,1731857439204,-500.0,0.00019178,2]
[342432419,1731857439213,-663.690202,0.00019178,2]
[342432420,1731857439222,-663.690202,0.00019178,2]
[342432421,1731857439231,-663.690202,0.00019178,2]
[342432422,1731857439240,-259.85801685,0.00019178,2]
[342432442,1731857440352,-240.14198315,0.00019178,2]
[342432443,1731857440362,-663.690202,0.00019178,2]
[342432444,1731857440372,-663.690202,0.00019178,2]
[342432445,1731857440381,-663.690202,0.00019178,2]
[342432446,1731857440393,-482.49119765,0.00019178,2]
[342432466,1731857443175,-132.94088549,0.00019178,2]
[342432467,1731857443184,-500.0,0.00019178,2]
[342432468,1731857443194,-500.0,0.00019178,2]
[342432469,1731857443206,-500.0,0.00019178,2]
[342432470,1731857443216,-500.0,0.00019178,2]
[342432471,1731857443226,-621.26,0.00019178,2]
[342432473,1731857443235,-500.0,0.00019178,2]
[342432475,1731857443244,-500.0,0.00019178,2]
[342432476,1731857443253,-500.0,0.00019178,2]
[342432478,1731857443263,-637.79,0.00019178,2]
[342432479,1731857443272,-500.0,0.00019178,2]
[342432480,1731857443282,-503.65622904,0.00019178,2]
[342432481,1731857443291,-500.0,0.00019178,2]
[342432482,1731857443300,-500.0,0.00019178,2]
[342432483,1731857443310,-500.0,0.00019178,2]
[342432484,1731857443319,-500.0,0.00019178,2]
[342432485,1731857443329,-500.0,0.00019178,2]
[342432486,1731857443338,-500.0,0.00019178,2]
[342432488,1731857443348,-500.0,0.00019178,2]
[342432490,1731857443357,-202.96327716,0.00019178,2]
[342432493,1731857443366,-500.0,0.00019178,2]
[342432495,1731857443376,-560.84242202,0.00019178,2]
[342432497,1731857443386,-151.0,0.00019178,2]
[342432498,1731857443397,-500.0,0.00019178,2]
[342432499,1731857443407,-500.0,0.00019178,2]
[342432500,1731857443417,-503.29034906,0.00019178,2]
[342432501,1731857443426,-626.12144879,0.00019178,2]
[342432502,1731857443436,-500.0,0.00019178,2]
[342432503,1731857443445,-447.11459682,0.00019178,2]
[342432504,1731857443455,-1322.3,0.00019178,2]
[342432505,1731857443465,-500.0,0.00019178,2]
[342432506,1731857443475,-500.0,0.00019178,2]
[342432507,1731857443484,-533.49,0.00019178,2]
[342432508,1731857443494,-500.0,0.00019178,2]
[342432509,1731857443503,-500.0,0.00019178,2]
[342432510,1731857443512,-500.98717387,0.00019178,2]
[342432511,1731857443521,-500.0,0.00019178,2]
[342432512,1731857443530,-500.0,0.00019178,2]
[342432513,1731857443539,-500.0,0.00019178,2]
[342432514,1731857443549,-523.30387489,0.00019178,2]
[342432515,1731857443559,-500.0,0.00019178,2]
[342432516,1731857443568,-500.0,0.00019178,2]
[342432517,1731857443578,-500.0,0.00019178,2]
[342432518,1731857443587,-574.33759652,0.00019178,2]
[342432519,1731857443597,-525.1208139,0.00019178,2]
[342432520,1731857443607,-505.14761893,0.00019178,2]
[342432521,1731857443618,-659.88,0.00019178,2]
[342432522,1731857443627,-500.0,0.00019178,2]
[342432523,1731857443637,-325.00060746,0.00019178,2]
[342432524,1731857443649,-254.77,0.00019178,2]
[342432525,1731857443658,-343.06803304,0.00019178,2]
[342432526,1731857443668,-231.32678462,0.00019178,2]
[342432527,1731857443678,-500.0,0.00019178,2]
[342432528,1731857443690,-500.0,0.00019178,2]
[342432529,1731857443701,-725.28,0.00019178,2]
[342432530,1731857443710,-340.2952685,0.00019178,2]
[342432531,1731857443788,-159.7047315,0.00019178,2]
[342432532,1731857443798,-286.7952675,0.00019178,2]
[342432533,1731857443810,-358.8147325,0.00019178,2]
[342432534,1731857443820,-512.45716059,0.00019178,2]
[342432535,1731857443834,-500.0,0.00019178,2]
[342432536,1731857443844,-299.562388,0.00019178,2]
[342432537,1731857443855,-421.4430179,0.00019178,2]
[342432538,1731857443864,-500.0,0.00019178,2]
[342432539,1731857443874,-500.0,0.00019178,2]
[342432540,1731857443884,-500.0,0.00019178,2]
[342432541,1731857443895,-500.0,0.00019178,2]
[342432542,1731857443905,-500.0,0.00019178,2]
[342432543,1731857443915,-500.0,0.00019178,2]
[342432544,1731857443924,-500.0,0.00019178,2]
[342432545,1731857443934,-500.0,0.00019178,2]
[342432546,1731857443943,-500.0,0.00019178,2]
[342432547,1731857443952,-500.0,0.00019178,2]
[342432548,1731857443962,-500.0,0.00019178,2]
[342432549,1731857443971,-558.89,0.00019178,2]
[342432550,1731857443979,-500.0,0.00019178,2]
[342432551,1731857443988,-500.0,0.00019178,2]
[342432552,1731857443998,-500.0,0.00019178,2]
[342432553,1731857444012,-545.52,0.00019178,2]
[342432554,1731857444023,-540.86947159,0.00019178,2]
[342432555,1731857444032,-500.0,0.00019178,2]
[342432556,1731857444042,-825.78,0.00019178,2]
[342432557,1731857444052,-500.0,0.00019178,2]
[342432558,1731857444063,-500.0,0.00019178,2]
[342432559,1731857444072,-500.0,0.00019178,2]
[342432560,1731857444081,-200.52067939,0.00019178,2]
[342432561,1731857444092,-500.0,0.00019178,2]
[342432562,1731857444102,-162.77806397,0.00019178,2]
[342432563,1731857444112,-649.09575139,0.00019178,2]
[342432564,1731857444121,-500.0,0.00019178,2]
[342432565,1731857444130,-500.0,0.00019178,2]
[342432566,1731857444342,-297.727,0.00019178,2]
[342432567,1731857444352,-500.0,0.00019178,2]
[342432568,1731857444361,-500.0,0.00019178,2]
[342432569,1731857444370,-503.51,0.00019178,2]
[342432570,1731857444379,-500.0,0.00019178,2]
[342432571,1731857444389,-500.0,0.00019178,2]
[342432572,1731857444402,-221.71982452,0.00019178,2]
[342432588,1731857506297,2853.79506,0.00025,120]
[342432594,1731857640323,435.0,0.00025,120]
[342432595,1731857897656,267.807401,0.00013973,2]
[342432606,1731858030307,1000.0,0.00025,120]
[342432631,1731858632374,-355.00002,0.00016661,2]
[342432675,1731858639438,-956.52456957,0.00016661,2]
[342432676,1731858639449,-355.00002,0.00016829,2]
[342432677,1731858639458,-499.48482821,0.00017894,2]
[342432678,1731858639468,-300.0,0.00017969,2]
[342432679,1731858639477,-300.0,0.00017969,2]
[342432680,1731858639486,-736.49618491,0.0001797,2]
[342432681,1731858639550,-5923.68276117,0.0001797,2]
[342432682,1731858639562,-13678.1939308,0.0001797,2]
[342432683,1731858639573,-4371.27809512,0.0001797,2]
[342432684,1731858639583,-250.0,0.00017994,2]
[342432685,1731858639592,-2690.07227446,0.00018899,2]
[342432686,1731858639602,-210.99554213,0.00018978,3]
[342432687,1731858639612,-498.43619509,0.00018999,2]
[342432688,1731858639622,-13706.38424984,0.00018999,2]
[342432689,1731858639631,-169.74178061,0.00018999,2]
[342432690,1731858639641,-500.0,0.00018999,2]
[342432691,1731858639650,-500.0,0.00018999,2]
[342432692,1731858639662,-236.08378424,0.00018999,2]
[342432693,1731858639671,-645.82866646,0.00018999,2]
[342432694,1731858639680,-6056.54839005,0.00019,2]
[342432695,1731858639691,-869.06735047,0.00019,2]
[342432706,1731858640528,-1311.52458957,0.00019,2]
[342432707,1731858640543,-315.646,0.00019,2]
[342432723,1731858644808,-20435.13225763,0.00019,2]
[342432724,1731858644821,-14840.36774237,0.00019,2]
[342432725,1731858644834,-797.9490003,0.00019,2]
[342432733,1731858646344,-566.6981777,0.00019,2]
[342432734,1731858646357,-35463.47347498,0.00019,2]
[342432735,1731858646367,-239.82069267,0.00019078,2]
[342432736,1731858646380,-500.0,0.00019173,2]
[342432737,1731858646393,-500.0,0.00019173,2]
[342432738,1731858646404,-2075.16771655,0.00019177,2]
[342432739,1731858646417,-408.453209,0.00019178,2]
[342432740,1731858646430,-408.453209,0.00019178,2]
[342432741,1731858646441,-408.453209,0.00019178,2]
[342432742,1731858646452,-408.453209,0.00019178,2]
[342432743,1731858646463,-408.453209,0.00019178,2]
[342432744,1731858646475,-408.453209,0.00019178,2]
[342432745,1731858646487,-151.0,0.00019178,2]
[342432746,1731858646498,-153.28147,0.00019178,2]
[342432747,1731858646509,-151.0,0.00019178,2]
[342432748,1731858646520,-151.0,0.00019178,2]
[342432749,1731858646531,-151.0,0.00019178,2]
[342432750,1731858646544,-553.820183,0.00019178,2]
[342432751,1731858646555,-553.820183,0.00019178,2]
[342432752,1731858646565,-553.820183,0.00019178,2]
[342432753,1731858646575,-553.820183,0.00019178,2]
[342432754,1731858646586,-553.820183,0.00019178,2]
[342432755,1731858646596,-553.820183,0.00019178,2]
[342432756,1731858646607,-151.0,0.00019178,2]
[342432757,1731858646617,-151.0,0.00019178,2]
[342432758,1731858646628,-151.0,0.00019178,2]
[342432759,1731858646638,-151.0,0.00019178,2]
[342432760,1731858646649,-151.0,0.00019178,2]
[342432761,1731858646661,-151.0,0.00019178,2]
[342432762,1731858646672,-151.0,0.00019178,2]
[342432763,1731858646683,-151.0,0.00019178,2]
[342432764,1731858646693,-151.0,0.00019178,2]
[342432765,1731858646703,-151.0,0.00019178,2]
[342432766,1731858646714,-151.0,0.00019178,2]
[342432767,1731858646726,-151.0,0.00019178,2]
[342432768,1731858646737,-151.0,0.00019178,2]
[342432769,1731858646748,-151.0,0.00019178,2]
[342432770,1731858646758,-151.0,0.00019178,2]
[342432771,1731858646769,-500.0,0.00019178,2]
[342432772,1731858646779,-151.0,0.00019178,2]
[342432773,1731858646790,-500.0,0.00019178,2]
[342432774,1731858646801,-151.0,0.00019178,2]
[342432775,1731858646811,-151.0,0.00019178,2]
[342432776,1731858646822,-151.0,0.00019178,2]
[342432777,1731858646832,-151.0,0.00019178,2]
[342432778,1731858646843,-151.0,0.00019178,2]
[342432779,1731858646854,-151.0,0.00019178,2]
[342432780,1731858646864,-151.0,0.00019178,2]
[342432781,1731858646875,-500.0,0.00019178,2]
[342432782,1731858646885,-151.0,0.00019178,2]
[342432783,1731858646896,-151.0,0.00019178,2]
[342432784,1731858646907,-151.0,0.00019178,2]
[342432785,1731858646918,-151.0,0.00019178,2]
[342432786,1731858646929,-151.0,0.00019178,2]
[342432787,1731858646940,-151.0,0.00019178,2]
[342432788,1731858646951,-151.0,0.00019178,2]
[342432789,1731858646963,-151.0,0.00019178,2]
[342432790,1731858646974,-151.0,0.00019178,2]
[342432791,1731858646985,-156.035794,0.00019178,2]
[342432792,1731858646996,-151.0,0.00019178,2]
[342432793,1731858647007,-151.0,0.00019178,2]
[342432794,1731858647018,-151.0,0.00019178,2]
[342432795,1731858647028,-151.0,0.00019178,2]
[342432796,1731858647039,-151.0,0.00019178,2]
[342432797,1731858647050,-151.0,0.00019178,2]
[342432798,1731858647060,-151.0,0.00019178,2]
[342432799,1731858647071,-151.0,0.00019178,2]
[342432800,1731858647082,-151.0,0.00019178,2]
[342432801,1731858647092,-151.0,0.00019178,2]
[342432802,1731858647103,-151.0,0.00019178,2]
[342432803,1731858647114,-151.0,0.00019178,2]
[342432804,1731858647124,-151.0,0.00019178,2]
[342432805,1731858647135,-204.801264,0.00019178,2]
[342432806,1731858647146,-1017.32,0.00019178,2]
[342432807,1731858647157,-500.0,0.00019178,2]
[342432808,1731858647168,-500.0,0.00019178,2]
[342432809,1731858647179,-500.0,0.00019178,2]
[342432810,1731858647189,-751.06,0.00019178,2]
[342432811,1731858647200,-1352.71,0.00019178,2]
[342432812,1731858647211,-747.9,0.00019178,2]
[342432813,1731858647221,-545.91,0.00019178,2]
[342432814,1731858647231,-500.0,0.00019178,2]
[342432815,1731858647242,-500.0,0.00019178,2]
[342432816,1731858647253,-500.0,0.00019178,2]
[342432817,1731858647264,-611.55,0.00019178,2]
[342432818,1731858647275,-500.0,0.00019178,2]
[342432819,1731858647285,-500.0,0.00019178,2]
[342432820,1731858647295,-500.0,0.00019178,2]
[342432821,1731858647305,-500.0,0.00019178,2]
[342432822,1731858647316,-500.0,0.00019178,2]
[342432823,1731858647326,-500.0,0.00019178,2]
[342432824,1731858647337,-500.0,0.00019178,2]
[342432825,1731858647347,-151.0,0.00019178,2]
[342432826,1731858647357,-151.0,0.00019178,2]
[342432827,1731858647367,-151.0,0.00019178,2]
[342432828,1731858647380,-500.0,0.00019178,2]
[342432829,1731858647390,-151.0,0.00019178,2]
[342432830,1731858647400,-152.5812,0.00019178,2]
[342432831,1731858647411,-500.0,0.00019178,2]
[342432832,1731858647422,-1687.79,0.00019178,2]
[342432833,1731858647432,-158.574776,0.00019178,2]
[342432834,1731858647442,-158.574776,0.00019178,2]
[342432835,1731858647452,-158.574776,0.00019178,2]
[342432836,1731858647464,-158.574776,0.00019178,2]
[342432837,1731858647475,-158.574776,0.00019178,2]
[342432838,1731858647486,-158.574776,0.00019178,2]
[342432839,1731858647497,-158.574776,0.00019178,2]
[342432840,1731858647507,-500.0,0.00019178,2]
[342432841,1731858647518,-255.91498079,0.00019178,2]
[342432842,1731858647538,-263.15501921,0.00019178,2]
[342432843,1731858647549,-158.574776,0.00019178,2]
[342432844,1731858647560,-158.574776,0.00019178,2]
[342432845,1731858647570,-158.574776,0.00019178,2]
[342432846,1731858647580,-158.574776,0.00019178,2]
[342432847,1731858647590,-158.574776,0.00019178,2]
[342432848,1731858647601,-158.574776,0.00019178,2]
[342432849,1731858647613,-500.0,0.00019178,2]
[342432850,1731858647624,-158.574776,0.00019178,2]
[342432851,1731858647634,-158.574776,0.00019178,2]